bitfinex-derivatives/quotes_BTCF0:USTF0_20240815
["timestamp","ask_amount","ask_price","bid_price","bid_amount"]
[1723695731999,0.5208,58335.0,58334.0,0.1648674]
[1723695732206,0.5248,58335.0,58334.0,0.1658674]
[1723695732603,0.164,58335.0,58334.0,0.1658674]
[1723695732797,0.164,58335.0,58334.0,0.43250253]
[1723695733512,0.174,58335.0,58334.0,0.43350253]
[1723695735206,0.057974,58335.0,58334.0,0.73328749]
[1723695735505,0.01012682,58340.0,58334.0,0.73328749]
[1723695735506,0.00025704,58340.0,58339.0,0.059989]
[1723695735708,0.15025704,58340.0,58339.0,1.12818738]
[1723695735911,0.15025704,58340.0,58339.0,1.38500889]
[1723695736304,0.15025704,58340.0,58339.0,1.15435873]
[1723695737309,0.15025704,58340.0,58339.0,1.00704742]
[1723695737808,0.15025704,58340.0,58339.0,0.74245258]
[1723695738014,0.15025704,58340.0,58339.0,1.00903622]
[1723695738210,0.15025704,58340.0,58339.0,1.00904254]
[1723695739306,0.15025704,58340.0,58339.0,1.09447021]
[1723695739608,0.15025704,58340.0,58339.0,0.063989]
[1723695740501,0.15025704,58340.0,58339.0,0.004]
[1723695740704,0.30504504,58340.0,58339.0,0.004]
[1723695742813,0.30504504,58340.0,58339.0,0.003]
[1723695743514,0.059989,58339.0,58335.0,0.05125876]
[1723695743719,0.3608,58336.0,58335.0,0.05125876]
[1723695743907,0.5108,58336.0,58335.0,0.05125876]
[1723695744410,0.5108,58336.0,58334.0,0.059994]
[1723695744609,0.6056,58336.0,58335.0,0.05128115]
[1723695744805,0.6056,58336.0,58334.0,0.059994]
[1723695745116,0.6056,58336.0,58335.0,0.05428002]
[1723695745316,0.6056,58336.0,58335.0,0.003]
[1723695745615,0.6056,58336.0,58335.0,0.05428309]
[1723695746000,0.6056,58336.0,58335.0,0.05828309]
[1723695746199,0.665592,58336.0,58335.0,0.05828309]
[1723695747214,0.665592,58336.0,58335.0,0.05528309]
[1723695748107,0.665592,58336.0,58335.0,0.05828309]
[1723695748904,0.15,58336.0,58335.0,0.05428309]
[1723695749114,0.00025704,58340.0,58339.0,0.059989]
[1723695749403,0.14025704,58340.0,58339.0,0.60105634]
[1723695749604,0.14025704,58340.0,58339.0,0.66053379]
[1723695749915,0.14025704,58340.0,58339.0,0.8416563]
[1723695750517,0.14025704,58340.0,58339.0,0.57506645]
[1723695751112,0.14025704,58340.0,58339.0,0.66051226]
[1723695751409,0.14025704,58340.0,58339.0,0.84165619]
[1723695751611,0.14025704,58340.0,58339.0,1.10037544]
[1723695752109,0.14025704,58340.0,58339.0,1.24257544]
[1723695752310,0.14025704,58340.0,58339.0,0.9759857]
[1723695752618,0.14025704,58340.0,58339.0,1.24257547]
[1723695753214,0.14025704,58340.0,58339.0,1.06141792]
[1723695753716,0.00225704,58340.0,58339.0,2.15680427]
[1723695753909,0.00225704,58340.0,58339.0,1.75680427]
[1723695754105,0.00225704,58340.0,58339.0,2.15680427]
[1723695754701,0.15225704,58340.0,58339.0,2.15680427]
[1723695754906,0.00225704,58340.0,58339.0,2.15680427]
[1723695755107,0.00025704,58340.0,58339.0,2.15680427]
[1723695755409,0.00025704,58340.0,58339.0,2.15880427]
[1723695756316,0.00025704,58340.0,58339.0,2.15879712]
[1723695756523,0.00025704,58340.0,58339.0,2.15879485]
[1723695756715,0.00025704,58340.0,58339.0,2.42536401]
[1723695758421,0.00025704,58340.0,58339.0,2.02536401]
[1723695758611,0.00025704,58340.0,58339.0,1.51112401]
[1723695758807,0.00025704,58340.0,58339.0,1.32994834]
[1723695759121,0.00025704,58340.0,58339.0,1.09294834]
[1723695759321,0.14025704,58340.0,58339.0,0.9480774]
[1723695760020,0.14025704,58340.0,58339.0,1.09262211]
[1723695760514,0.11915957,58340.0,58339.0,1.09262211]
[1723695761215,0.05106173,58355.0,58347.0,0.05998]
[1723695761412,0.05106173,58354.0,58351.0,0.05124008]
[1723695761606,0.19106173,58354.0,58351.0,0.05124008]
[1723695761806,0.3608,58353.0,58351.0,0.05124008]
[1723695762021,0.5308,58353.0,58351.0,0.05124008]
[1723695764619,0.5308,58353.0,58352.0,0.05124008]
[1723695767617,0.5308,58353.0,58352.0,0.11121608]
[1723695768120,0.059976,58352.0,58351.0,0.05124008]
[1723695768319,0.059977,58351.0,58349.0,0.05124008]
[1723695768515,0.209977,58351.0,58349.0,0.05124008]
[1723695768718,0.059978,58350.0,58349.0,0.05124008]
[1723695768910,0.199978,58350.0,58349.0,0.05124008]
[1723695771519,0.207978,58350.0,58349.0,0.05224008]
[1723695772320,0.207978,58350.0,58349.0,0.001]
[1723695773921,0.207978,58350.0,58349.0,0.05226058]
[1723695774216,0.207978,58350.0,58349.0,0.001]
[1723695775920,0.207978,58350.0,58349.0,0.0958]
[1723695776126,0.207978,58350.0,58349.0,0.0968]
[1723695777322,0.207978,58350.0,58349.0,0.16512011]
[1723695778213,0.207978,58350.0,58349.0,0.0968]
[1723695779518,0.207978,58350.0,58349.0,0.156779]
[1723695779715,0.27615219,58350.0,58349.0,0.061979]
[1723695783825,0.207978,58350.0,58349.0,0.061979]
[1723695784334,0.148,58350.0,58349.0,0.156779]
[1723695784524,0.21625223,58350.0,58349.0,0.156779]
[1723695787133,0.148,58350.0,58349.0,0.156779]
[1723695790838,0.207978,58350.0,58349.0,0.002]
[1723695791221,0.302778,58350.0,58349.0,0.002]
[1723695804658,0.51416,58349.0,58346.0,0.05140705]
[1723695804934,0.059991,58337.0,58336.0,0.06854273]
[1723695805139,0.059994,58334.0,58333.0,0.06854273]
[1723695805336,0.304794,58334.0,58333.0,0.05135112]
[1723695805537,0.26108549,58334.0,58333.0,0.14615112]
[1723695805736,0.209994,58334.0,58333.0,0.0948]
[1723695806444,0.209994,58334.0,58333.0,0.15512248]
[1723695806445,0.210994,58334.0,58333.0,0.15512248]
[1723695806744,0.210994,58334.0,58333.0,0.1038]
[1723695807146,0.305794,58334.0,58333.0,0.009]
[1723695807731,0.305794,58334.0,58333.0,0.018]
[1723695809734,0.210994,58334.0,58333.0,0.018]
[1723695809940,0.31602651,58334.0,58333.0,0.018]
[1723695812946,0.151,58334.0,58333.0,0.077995]
[1723695813541,0.151,58334.0,58333.0,0.018]
[1723695813744,0.2458,58334.0,58333.0,0.018]
[1723695814647,0.151,58334.0,58333.0,0.018]
[1723695821647,0.210994,58334.0,58333.0,0.018]
[1723695822540,0.151,58334.0,58333.0,0.1128]
[1723695823147,0.210994,58334.0,58333.0,0.1128]
[1723695823449,0.151,58334.0,58333.0,0.1128]
[1723695823956,0.210994,58334.0,58333.0,0.1128]
[1723695828654,0.210994,58334.0,58333.0,0.018]
[1723695830353,0.210994,58334.0,58333.0,0.1128]
[1723695831952,0.151,58334.0,58333.0,0.1128]
[1723695832161,0.151,58334.0,58333.0,0.16412064]
[1723695832357,0.151,58334.0,58333.0,0.1128]
[1723695832672,0.151,58334.0,58333.0,0.172795]
[1723695832867,0.151,58334.0,58333.0,0.24133773]
[1723695833161,0.151,58334.0,58333.0,0.172795]
[1723695834163,0.151,58334.0,58333.0,0.18284022]
[1723695834464,0.151,58334.0,58333.0,0.32479938]
[1723695834958,0.151,58334.0,58333.0,0.23912696]
[1723695835858,0.151,58334.0,58333.0,0.23887224]
[1723695836557,0.06242558,58334.0,58333.0,0.75315224]
[1723695836761,0.00025704,58339.0,58338.0,0.05999]
[1723695836964,0.15025704,58339.0,58338.0,1.42420125]
[1723695837158,0.15025704,58339.0,58338.0,2.08231164]
[1723695837359,0.15025704,58339.0,58338.0,2.01056291]
[1723695838261,0.119984,58336.0,58328.0,0.06871982]
[1723695838562,0.88448943,58329.0,58326.0,0.06846278]
[1723695838764,0.9664,58329.0,58324.0,0.21833291]
[1723695838952,0.0680835,58325.0,58322.0,0.06846278]
[1723695839153,0.0680835,58325.0,58321.0,0.047]
[1723695839154,0.060006,58322.0,58321.0,0.11546278]
[1723695839350,0.060008,58320.0,58319.0,0.06846278]
[1723695839555,0.060011,58318.0,58317.0,0.06846278]
[1723695839753,0.675611,58318.0,58316.0,0.00025704]
[1723695839965,0.580811,58318.0,58316.0,0.00025704]
[1723695840260,0.060012,58317.0,58316.0,0.00025704]
[1723695840464,0.220012,58317.0,58316.0,0.00025704]
[1723695840664,0.734452,58317.0,58316.0,0.00025704]
[1723695841266,0.8025355,58317.0,58316.0,0.00025704]
[1723695841456,0.734452,58317.0,58316.0,0.00025704]
[1723695841656,0.220012,58317.0,58316.0,0.00025704]
[1723695841955,0.221012,58317.0,58316.0,0.00225704]
[1723695842357,0.99357113,58317.0,58316.0,0.00225704]
[1723695842766,0.99257113,58317.0,58316.0,0.00025704]
[1723695843065,0.99357113,58317.0,58316.0,0.00225704]
[1723695843559,0.941612,58317.0,58316.0,0.00125704]
[1723695849058,0.941612,58317.0,58316.0,0.21958995]
[1723695850664,0.580812,58317.0,58316.0,0.21958995]
[1723695852563,0.580812,58317.0,58316.0,0.00125704]
[1723695853566,1.095252,58317.0,58316.0,0.00125704]
[1723695854866,0.580812,58317.0,58316.0,0.00125704]
[1723695863667,0.220012,58317.0,58316.0,0.00125704]
[1723695863865,0.580812,58317.0,58316.0,0.00125704]
[1723695864669,0.675612,58317.0,58316.0,0.00125704]
[1723695865573,1.590052,58317.0,58316.0,0.00125704]
[1723695865773,0.060022,58307.0,58305.0,0.0259544]
[1723695865981,0.8164,58306.0,58305.0,0.0259544]
[1723695866286,1.046423,58306.0,58298.0,0.1408]
[1723695866577,0.3608,58299.0,58298.0,0.1408]
[1723695866775,0.5308,58299.0,58298.0,0.35913291]
[1723695867177,0.59083,58299.0,58298.0,0.35913291]
[1723695869175,0.23103,58299.0,58298.0,0.43759569]
[1723695869479,0.23203,58299.0,58298.0,0.43759569]
[1723695869674,0.23203,58299.0,58298.0,0.43759885]
[1723695870990,0.172,58299.0,58298.0,0.36913291]
[1723695871583,0.172,58299.0,58298.0,0.43758219]
[1723695872375,0.172,58299.0,58298.0,0.36913291]
[1723695881978,0.00025727,58304.0,58303.0,0.060026]
[1723695882287,0.15025727,58304.0,58303.0,0.27835891]
[1723695883290,0.15125727,58304.0,58303.0,0.27835891]
[1723695884988,0.15225727,58304.0,58303.0,0.28635891]
[1723695887885,0.15225727,58304.0,58303.0,0.38125891]
[1723695888784,0.15225727,58304.0,58303.0,0.38933778]
[1723695894192,0.15225727,58304.0,58303.0,1.24561192]
[1723695894492,0.3608,58316.0,58308.0,0.0949]
[1723695894691,0.5108,58316.0,58315.0,0.0949]
[1723695895094,0.5108,58316.0,58315.0,0.1427]
[1723695895586,0.5108,58316.0,58315.0,0.27115962]
[1723695895587,0.15,58316.0,58315.0,0.27115962]
[1723695895787,0.15,58316.0,58315.0,0.202714]
[1723695895983,0.00025727,58321.0,58320.0,0.060008]
[1723695896183,0.00025727,58321.0,58320.0,0.65916738]
[1723695896483,1e-08,58321.0,58320.0,1.69645847]
[1723695896694,1e-08,58321.0,58320.0,2.01100107]
[1723695897398,0.10278669,58335.0,58327.0,0.060001]
[1723695897691,0.10278669,58335.0,58327.0,0.206138]
[1723695897894,0.10278669,58335.0,58327.0,0.111238]
[1723695897895,0.00788669,58335.0,58327.0,0.111238]
[1723695898089,0.420793,58336.0,58327.0,0.111238]
[1723695898293,0.059993,58335.0,58327.0,0.111238]
[1723695898502,0.4708,58328.0,58327.0,0.060001]
[1723695899990,0.4748,58328.0,58327.0,0.060001]
[1723695900294,0.4788,58328.0,58327.0,0.060001]
[1723695901699,0.3688,58328.0,58327.0,0.060001]
[1723695904401,0.5188,58328.0,58327.0,0.060001]
[1723695905003,0.008,58328.0,58327.0,0.3185189]
[1723695905891,0.008,58328.0,58327.0,0.3653189]
[1723695906398,0.148,58328.0,58327.0,0.3653189]
[1723695906606,0.148,58328.0,58327.0,0.106801]
[1723695910701,0.148,58328.0,58327.0,0.36441591]
[1723695912097,0.148,58328.0,58327.0,1.11573591]
[1723695914204,0.00025727,58333.0,58332.0,0.059996]
[1723695914407,0.16025727,58333.0,58332.0,0.059996]
[1723695914603,0.16025727,58333.0,58332.0,0.106196]
[1723695916309,0.16525727,58333.0,58332.0,0.107196]
[1723695916622,0.16525727,58333.0,58332.0,0.36304211]
[1723695916806,0.17425727,58333.0,58332.0,0.36404211]
[1723695917508,0.17425727,58333.0,58332.0,0.41527911]
[1723695918008,0.17425727,58333.0,58332.0,0.65227911]
[1723695918313,0.014,58333.0,58332.0,1.6517284]
[1723695918503,0.014,58333.0,58332.0,1.8234524]
[1723695918813,0.00688924,58333.0,58332.0,1.86996309]
[1723695919003,0.00688924,58333.0,58332.0,5.63969338]
[1723695919199,0.00688924,58333.0,58332.0,5.72491068]
[1723695919508,0.00688924,58333.0,58332.0,5.63869338]
[1723695919715,0.00025727,58338.0,58337.0,0.059991]
[1723695919905,0.00025727,58338.0,58337.0,0.48898517]
[1723695920101,0.00025727,58338.0,58337.0,1.25992567]
[1723695920814,0.15525727,58338.0,58337.0,0.74568567]
[1723695921018,0.16125727,58338.0,58337.0,0.74668567]
[1723695921402,0.16125727,58338.0,58337.0,0.6784915]
[1723695924614,0.16125727,58338.0,58337.0,0.421791]
[1723695926419,0.16125727,58338.0,58337.0,0.50703371]
[1723695927115,0.16125727,58338.0,58337.0,0.421791]
[1723695929818,0.16125727,58338.0,58337.0,0.50703371]
[1723695930021,0.16125727,58338.0,58337.0,0.81014051]
[1723695930205,0.16125727,58338.0,58337.0,0.7248978]
[1723695930821,0.16125727,58338.0,58337.0,4.4948978]
[1723695932419,0.16125727,58338.0,58337.0,0.7248978]
[1723695932610,0.16125727,58338.0,58337.0,0.72478398]
[1723695933025,0.16125727,58338.0,58337.0,4.49478398]
[1723695935923,0.16125727,58338.0,58337.0,0.72478398]
[1723695941830,0.16125727,58338.0,58337.0,0.9913201]
[1723695942331,0.16125727,58338.0,58337.0,1.09398853]
[1723695944328,0.16125727,58338.0,58337.0,0.9913201]
[1723695945128,0.16125727,58338.0,58337.0,0.99131947]
[1723695946129,0.16125727,58338.0,58337.0,1.08611947]
[1723695946324,0.16125727,58338.0,58337.0,0.94505213]
[1723695946530,0.16125727,58338.0,58337.0,0.99132231]
[1723695946728,0.16125727,58338.0,58337.0,0.92228298]
[1723695946931,0.16125727,58338.0,58337.0,0.45874174]
[1723695947922,0.16125727,58338.0,58337.0,0.04727018]
[1723695947923,0.22124727,58338.0,58337.0,0.04727018]
[1723695948222,0.22124727,58338.0,58337.0,0.001]
[1723695949124,0.22124727,58338.0,58337.0,0.06951303]
[1723695949334,0.22124727,58338.0,58337.0,0.001]
[1723695950432,0.22124727,58338.0,58337.0,0.05235081]
[1723695950934,0.22124727,58338.0,58337.0,0.001]
[1723695951234,0.27232237,58338.0,58337.0,0.05233981]
[1723695951425,0.21233297,58338.0,58337.0,0.001]
[1723695952037,0.16125727,58338.0,58337.0,0.001]
[1723695954335,0.16125727,58338.0,58337.0,0.060991]
[1723695957137,0.16125727,58338.0,58337.0,0.32759624]
[1723695957342,0.16125727,58338.0,58337.0,0.37669624]
[1723695959425,0.16125727,58338.0,58337.0,0.46234357]
[1723695959624,0.16125727,58338.0,58337.0,0.46233962]
[1723695960639,0.16125727,58338.0,58337.0,0.37669229]
[1723695960839,0.16125727,58338.0,58337.0,0.46233962]
[1723695961140,0.16125727,58338.0,58337.0,0.37669229]
[1723695961540,0.16125727,58338.0,58337.0,0.110091]
[1723695961938,0.16125727,58338.0,58337.0,0.37669528]
[1723695962342,0.16125727,58338.0,58337.0,0.110091]
[1723695969142,0.42759173,58344.0,58337.0,0.110091]
[1723695969347,0.57571172,58344.0,58342.0,0.05133117]
[1723695969534,0.57571172,58344.0,58343.0,0.05133117]
[1723695969940,0.67051172,58344.0,58342.0,0.05133117]
[1723695970236,0.73859522,58344.0,58341.0,0.05133117]
[1723695970443,0.3608,58342.0,58340.0,0.0948]
[1723695970647,0.5108,58342.0,58340.0,0.16324156]
[1723695971251,0.5108,58342.0,58341.0,0.001]
[1723695971645,0.5108,58342.0,58341.0,0.06944156]
[1723695971850,0.5188,58342.0,58341.0,0.06944156]
[1723695972146,0.5188,58342.0,58341.0,0.001]
[1723695972447,0.5188,58342.0,58341.0,0.06944156]
[1723695973454,0.5188,58342.0,58341.0,0.06844156]
[1723695973644,0.5868835,58342.0,58341.0,0.001]
[1723695974442,0.5868835,58342.0,58341.0,0.002]
[1723695974955,0.5188,58342.0,58341.0,0.07044156]
[1723695975158,0.5188,58342.0,58341.0,0.002]
[1723695975460,0.5868835,58342.0,58341.0,0.07049121]
[1723695975845,1.587786,58342.0,58341.0,0.002]
[1723695976156,1.587786,58342.0,58341.0,0.05337355]
[1723695976345,0.51424,58341.0,58338.0,0.05137887]
[1723695976540,0.51424,58341.0,58334.0,0.05138032]
[1723695976541,0.059993,58335.0,58334.0,0.05138032]
[1723695976740,0.059994,58334.0,58327.0,0.06850653]
[1723695977048,0.54084197,58328.0,58323.0,0.05138671]
[1723695977244,0.54084197,58328.0,58318.0,0.17528579]
[1723695977245,0.060005,58323.0,58322.0,0.05138671]
[1723695977444,0.060006,58322.0,58318.0,0.2266725]
[1723695977647,0.3608,58319.0,58318.0,0.2266725]
[1723695977843,0.5308,58319.0,58318.0,0.2266725]
[1723695978444,0.5308,58319.0,58318.0,0.17528579]
[1723695980351,0.5308,58319.0,58318.0,0.006]
[1723695980759,0.5318,58319.0,58318.0,0.013]
[1723695982052,0.5318,58319.0,58318.0,0.073011]
[1723695983649,0.5318,58319.0,58318.0,0.08125594]
[1723695986352,0.5318,58319.0,58318.0,0.02124494]
[1723695986551,0.5318,58319.0,58318.0,0.013]
[1723695994666,0.5318,58319.0,58318.0,0.073011]
[1723695996067,0.171,58319.0,58318.0,0.073011]
[1723695996471,0.171,58319.0,58318.0,0.433811]
[1723695996867,0.171,58319.0,58318.0,0.48519771]
[1723695997163,0.171,58319.0,58318.0,0.433811]
[1723695999172,0.171,58319.0,58318.0,0.50231753]
[1723696000367,0.171,58319.0,58318.0,0.433811]
[1723696004577,0.171,58319.0,58318.0,0.56085792]
[1723696005281,0.171,58319.0,58318.0,0.47521059]
[1723696005978,0.171,58319.0,58318.0,0.57001059]
[1723696006179,0.171,58319.0,58318.0,0.82571067]
[1723696006377,0.23,58325.0,58323.0,0.060005]
[1723696006680,0.17,58325.0,58324.0,0.2361]
[1723696007769,0.17,58325.0,58324.0,0.296104]
[1723696009573,0.17,58325.0,58324.0,0.304104]
[1723696011084,0.171,58325.0,58324.0,0.314104]
[1723696012683,0.171,58325.0,58324.0,0.172804]
[1723696012982,0.171,58325.0,58324.0,0.14648113]
[1723696013173,0.171,58325.0,58324.0,0.078004]
[1723696013483,0.171,58325.0,58324.0,0.14648113]
[1723696014074,0.171,58325.0,58324.0,0.078004]
[1723696014280,0.171,58325.0,58324.0,0.14648113]
[1723696014480,0.171,58325.0,58324.0,0.078004]
[1723696014683,0.171,58325.0,58324.0,0.14648113]
[1723696014868,0.171,58325.0,58324.0,0.078004]
[1723696015980,0.171,58325.0,58324.0,0.14648113]
[1723696017384,0.171,58325.0,58324.0,0.078004]
[1723696018679,0.171,58325.0,58324.0,0.14650071]
[1723696018872,0.171,58325.0,58324.0,0.078004]
[1723696021288,0.171,58325.0,58324.0,0.14651967]
[1723696022475,0.23910822,58325.0,58324.0,0.078004]
[1723696023194,0.29911122,58325.0,58324.0,0.078004]
[1723696023987,0.060005,58323.0,58322.0,0.05140278]
[1723696024193,0.33004197,58323.0,58320.0,0.05140278]
[1723696024396,0.060008,58320.0,58319.0,0.05140278]
[1723696024688,0.060008,58320.0,58317.0,0.00025727]
[1723696024689,0.060011,58318.0,58317.0,0.00025727]
[1723696024892,0.75085297,58318.0,58317.0,0.00025727]
[1723696025082,1.26529297,58318.0,58317.0,0.00025727]
[1723696025281,1.66529297,58318.0,58317.0,1e-08]
[1723696025476,1.580051,58318.0,58317.0,1e-08]
[1723696025880,1.485251,58318.0,58317.0,1e-08]
[1723696026089,0.5108,58318.0,58317.0,0.06001201]
[1723696026388,0.5108,58318.0,58317.0,0.12854841]
[1723696026583,0.5108,58318.0,58317.0,0.06001201]
[1723696027692,0.5118,58318.0,58317.0,0.0746406]
[1723696027892,0.5128,58318.0,58317.0,0.0746406]
[1723696031288,0.152,58318.0,58317.0,0.0746406]
[1723696032292,0.152,58318.0,58317.0,0.34133707]
[1723696032493,0.152,58318.0,58317.0,0.0746406]
[1723696033093,0.152,58318.0,58317.0,0.0146286]
[1723696034196,0.152,58318.0,58317.0,0.00600001]
[1723696035094,0.152,58318.0,58317.0,0.07445583]
[1723696035302,0.152,58318.0,58317.0,0.00600001]
[1723696035487,0.152,58318.0,58317.0,0.07445666]
[1723696037108,0.152,58318.0,58317.0,0.06601201]
[1723696037591,0.152,58318.0,58317.0,0.32340466]
[1723696037799,0.152,58318.0,58317.0,0.73945117]
[1723696037990,0.152,58318.0,58317.0,0.86745844]
[1723696038191,0.00834256,58322.0,58317.0,0.80744644]
[1723696038498,0.14,58322.0,58321.0,0.060007]
[1723696038685,0.14,58322.0,58321.0,0.32668308]
[1723696039090,0.14,58322.0,58321.0,0.37628308]
[1723696039791,0.141,58322.0,58321.0,0.37628308]
[1723696040695,0.141,58322.0,58321.0,0.37828308]
[1723696041095,0.14,58322.0,58321.0,0.37828308]
[1723696041294,0.14,58322.0,58321.0,0.61318265]
[1723696041491,0.141,58322.0,58321.0,0.62018265]
[1723696041696,0.142,58322.0,58321.0,0.62118265]
[1723696042195,0.142,58322.0,58321.0,0.47184671]
[1723696042389,0.142,58322.0,58321.0,0.20517063]
[1723696042589,0.142,58322.0,58321.0,0.47184196]
[1723696044289,0.142,58322.0,58321.0,0.48033293]
[1723696044494,0.142,58322.0,58321.0,0.3947693]
[1723696045101,0.142,58322.0,58321.0,0.48033293]
[1723696045300,0.142,58322.0,58321.0,0.3947693]
[1723696050001,0.142,58322.0,58321.0,0.4895693]
[1723696051204,0.142,58322.0,58321.0,0.2851623]
[1723696051407,0.657606,58322.0,58321.0,0.01]
[1723696051611,0.657606,58322.0,58321.0,0.07844526]
[1723696051807,0.657606,58322.0,58321.0,0.01]
[1723696053812,0.562806,58322.0,58321.0,0.01]
[1723696054912,0.562806,58322.0,58321.0,0.33668544]
[1723696054913,0.142,58322.0,58321.0,0.33668544]
[1723696055511,0.142,58322.0,58321.0,0.42224907]
[1723696055512,8.682,58322.0,58321.0,0.42224907]
[1723696055813,8.682,58322.0,58321.0,0.46834907]
[1723696057009,8.682,58322.0,58321.0,0.20167063]
[1723696057315,8.682,58322.0,58321.0,0.468342]
[1723696057616,8.682,58322.0,58321.0,0.46834204]
[1723696060306,8.682,58322.0,58321.0,0.38277841]
[1723696061300,8.682,58322.0,58321.0,0.39125766]
[1723696061507,8.682,58322.0,58321.0,0.47686378]
[1723696063018,8.682,58322.0,58321.0,0.21019237]
[1723696063312,8.682,58322.0,58321.0,0.47686374]
[1723696063508,8.682,58322.0,58321.0,0.39125762]
[1723696063707,8.682,58322.0,58321.0,0.12458625]
[1723696064102,8.682,58322.0,58321.0,0.3912576]
[1723696066612,8.682,58322.0,58321.0,0.53169392]
[1723696066813,8.682,58322.0,58321.0,0.65969123]
[1723696068722,8.682,58322.0,58321.0,0.79835206]
[1723696069319,8.682,58322.0,58321.0,0.79835179]
[1723696069522,8.682,58322.0,58321.0,0.64902343]
[1723696069718,8.682,58322.0,58321.0,0.79835179]
[1723696070123,8.682,58322.0,58321.0,1.15915179]
[1723696071220,8.682,58322.0,58321.0,1.26193704]
[1723696072722,8.682,58322.0,58321.0,0.84595054]
[1723696072908,8.682,58322.0,58321.0,1.26193664]
[1723696073319,8.682,58322.0,58321.0,1.38993237]
[1723696076023,8.682,58322.0,58321.0,1.48473237]
[1723696076418,8.682,58322.0,58321.0,1.12393237]
[1723696076723,8.682,58322.0,58321.0,1.48473202]
[1723696076921,8.682,58322.0,58321.0,1.99913202]
[1723696079821,8.682,58322.0,58321.0,1.89634677]
[1723696080022,8.682,58322.0,58321.0,1.4551238]
[1723696080225,8.682,58322.0,58321.0,1.99909775]
[1723696080422,8.682,58322.0,58321.0,1.48469775]
[1723696080723,8.682,58322.0,58321.0,1.48470026]
[1723696081423,8.682,58322.0,58321.0,1.99910026]
[1723696081623,8.682,58322.0,58321.0,1.48470026]
[1723696082515,8.682,58322.0,58321.0,1.38194175]
[1723696082714,8.542,58322.0,58321.0,1.43785322]
[1723696082919,8.542,58322.0,58321.0,2.05941031]
[1723696083121,8.542,58322.0,58321.0,5.82941031]
[1723696083826,8.542,58322.0,58321.0,5.31501031]
[1723696084030,8.542,58322.0,58321.0,5.20785322]
[1723696085424,8.542,58322.0,58321.0,5.15194173]
[1723696085618,8.542,58322.0,58321.0,5.20756926]
[1723696086223,8.542,58322.0,58321.0,5.20755915]
[1723696086414,8.542,58322.0,58321.0,5.05823773]
[1723696086628,8.542,58322.0,58321.0,1.43755915]
[1723696088522,8.542,58322.0,58321.0,1.43755619]
[1723696090024,8.542,58322.0,58321.0,1.17090105]
[1723696090223,8.542,58322.0,58321.0,1.43754644]
[1723696092926,8.542,58322.0,58321.0,1.43754646]
[1723696093225,8.542,58322.0,58321.0,1.43755331]
[1723696093226,8.692,58322.0,58321.0,1.43755331]
[1723696093618,8.692,58322.0,58321.0,1.28823188]
[1723696093824,8.692,58322.0,58321.0,1.43755329]
[1723696095536,8.692,58322.0,58321.0,1.22711487]
[1723696095834,8.692,58322.0,58321.0,1.32191487]
[1723696096923,8.692,58322.0,58321.0,1.38192187]
[1723696097529,8.692,58322.0,58321.0,1.381963]
[1723696098230,8.692,58322.0,58321.0,1.48474628]
[1723696098423,8.692,58322.0,58321.0,1.48474231]
[1723696099727,8.542,58322.0,58321.0,1.48474231]
[1723696099928,8.682,58322.0,58321.0,1.48474231]
[1723696100133,8.682,58322.0,58321.0,1.38195903]
[1723696101536,8.682,58322.0,58321.0,1.02114543]
[1723696101832,8.682,58322.0,58321.0,1.10462222]
[1723696102024,8.682,58322.0,58321.0,1.38194541]
[1723696102843,8.682,58322.0,58321.0,1.43791659]
[1723696103233,8.682,58322.0,58321.0,1.43791654]
[1723696107044,8.682,58322.0,58321.0,1.43788121]
[1723696109140,8.682,58322.0,58321.0,1.28855338]
[1723696109343,8.682,58322.0,58321.0,1.43884125]
[1723696109747,8.542,58322.0,58321.0,1.43884125]
[1723696110347,8.542,58322.0,58321.0,5.20884125]
[1723696111839,8.542,58322.0,58321.0,5.20855776]
[1723696113243,7.05862851,58322.0,58321.0,6.82751487]
[1723696113545,6.85178251,58322.0,58321.0,6.15475074]
[1723696113741,6.85178251,58322.0,58321.0,6.09450755]
[1723696113940,6.83697086,58322.0,58321.0,5.22013184]
[1723696114134,6.83697086,58322.0,58321.0,5.05808394]
[1723696114340,6.83697086,58322.0,58321.0,5.14988394]
[1723696114545,6.83797086,58322.0,58321.0,5.15188394]
[1723696114942,6.92797086,58322.0,58321.0,1.28708394]
[1723696115146,6.83797086,58322.0,58321.0,1.38188394]
[1723696115444,6.83797086,58322.0,58321.0,1.33578394]
[1723696115650,6.94797086,58322.0,58321.0,1.33578394]
[1723696116154,6.83797086,58322.0,58321.0,1.17946374]
[1723696116354,6.83797086,58322.0,58321.0,1.21279529]
[1723696116550,6.83797086,58322.0,58321.0,1.34078975]
[1723696117048,6.83797086,58322.0,58321.0,1.32878975]
[1723696117353,6.83797086,58322.0,58321.0,1.33978975]
[1723696120058,6.83797086,58322.0,58321.0,1.07314662]
[1723696120254,6.83797086,58322.0,58321.0,1.33980174]
[1723696120868,6.83797086,58322.0,58321.0,5.10980174]
[1723696121266,6.83797086,58322.0,58321.0,1.33980174]
[1723696121772,6.83797086,58322.0,58321.0,5.10980174]
[1723696122363,6.83797086,58322.0,58321.0,5.16526381]
[1723696122569,6.83797086,58322.0,58321.0,5.10980174]
[1723696123663,6.83797086,58322.0,58321.0,4.56582529]
[1723696123863,6.83797086,58322.0,58321.0,5.1097695]
[1723696124060,6.83797086,58322.0,58321.0,4.56582529]
[1723696124268,6.08527086,58322.0,58321.0,4.84385783]
[1723696124462,6.08527086,58322.0,58321.0,6.19620024]
[1723696124666,6.08527086,58322.0,58321.0,5.94551825]
[1723696124976,6.08527086,58322.0,58321.0,5.66821337]
[1723696125173,6.08527086,58322.0,58321.0,5.73251244]
[1723696125365,6.08527086,58322.0,58321.0,5.66795521]
[1723696125567,6.08527086,58322.0,58321.0,5.78778195]
[1723696125765,6.08527086,58322.0,58321.0,5.27338195]
[1723696126165,6.08527086,58322.0,58321.0,5.81729857]
[1723696126769,6.08527086,58322.0,58321.0,1.89798889]
[1723696126970,6.08527086,58322.0,58321.0,1.77816215]